bitfinex-derivatives/quotes_SOLF0:USTF0_20241127
["timestamp","ask_amount","ask_price","bid_price","bid_amount"]
[1732693634360,8.86484139,234.3,234.29,7.15]
[1732693638962,8.86484139,234.3,234.29,7.24]
[1732693640459,2.1345,234.3,234.29,7.24]
[1732693640963,4.2145,234.3,234.29,7.24]
[1732693642262,2.08,234.31,234.29,7.24]
[1732693643162,6.73034139,234.37,234.29,7.24]
[1732693643457,2.1342,234.34,234.29,7.24]
[1732693644064,2.08,234.36,234.29,7.24]
[1732693644256,2.1342,234.33,234.29,7.24]
[1732693645566,2.08,234.36,234.29,7.24]
[1732693645861,2.1343,234.32,234.29,7.24]
[1732693647263,2.1341,234.35,234.29,16.10494139]
[1732693647463,8.65599304,234.34,234.29,16.10494139]
[1732693647658,2.08,234.36,234.29,16.10494139]
[1732693647869,8.65605526,234.35,234.29,16.10494139]
[1732693648161,8.65605526,234.35,234.29,7.24]
[1732693648369,15.38639665,234.35,234.29,7.24]
[1732693648562,8.65605526,234.34,234.29,7.24]
[1732693648960,2.1344,234.32,234.29,7.24]
[1732693649158,6.73034139,234.35,234.29,7.24]
[1732693649456,8.66010832,234.34,234.29,7.24]
[1732693649867,8.66010832,234.34,234.29,10.65]
[1732693650668,2.1345,234.31,234.29,10.65]
[1732693650867,2.08,234.31,234.29,10.65]
[1732693651268,4.2144,234.31,234.29,10.65]
[1732693651660,2.08,234.31,234.29,10.65]
[1732693652368,8.67049035,234.3,234.29,10.65]
[1732693652565,2.08,234.31,234.29,10.65]
[1732693652968,10.80535497,234.3,234.29,10.65]
[1732693657773,20.28832181,234.3,234.29,7.15]
[1732693660670,2.135,234.25,234.24,3.5]
[1732693660875,19.61619636,234.25,234.24,3.5]
[1732693661178,17.48119636,234.25,234.14,6.73034139]
[1732693661472,6.73034139,234.22,234.14,6.73034139]
[1732693661671,8.67085497,234.21,234.14,6.73034139]
[1732693661867,2.08,234.2,234.14,6.73034139]
[1732693662066,4.2154,234.2,234.14,6.73034139]
[1732693662473,4.2154,234.2,234.14,8.73034139]
[1732693662878,4.2154,234.2,234.14,12.23034139]
[1732693663079,2.08,234.2,234.16,6.73034139]
[1732693665678,2.08,234.2,234.15,2.1359]
[1732693665875,2.08,234.2,234.17,6.73034139]
[1732693666072,2.08,234.24,234.19,6.73034139]
[1732693666680,2.08,234.24,234.14,5.5]
[1732693666681,2.08,234.26,234.23,6.73034139]
[1732693667471,4.2149,234.26,234.21,6.73034139]
[1732693667877,2.135,234.25,234.19,6.73034139]
[1732693668080,2.08,234.26,234.19,6.73034139]
[1732693668273,8.6681703,234.25,234.19,6.73034139]
[1732693668880,2.135,234.24,234.19,6.73034139]
[1732693669783,2.135,234.24,234.18,2.1356]
[1732693669979,2.1353,234.21,234.15,2.1359]
[1732693670180,4.2153,234.21,234.15,8.86624139]
[1732693670379,4.2153,234.21,234.17,6.73034139]
[1732693670683,2.08,234.21,234.17,6.73034139]
[1732693671483,2.08,234.21,234.16,2.1358]
[1732693671680,2.08,234.21,234.14,5.5]
[1732693671884,2.08,234.21,234.14,12.23034139]
[1732693672287,2.08,234.21,234.14,5.5]
[1732693672585,2.08,234.21,234.16,6.73034139]
[1732693673285,2.1354,234.2,234.16,6.73034139]
[1732693673487,2.08,234.21,234.16,6.73034139]
[1732693673984,2.08,234.21,234.14,12.23034139]
[1732693674183,2.08,234.21,234.15,2.1359]
[1732693674184,2.1354,234.2,234.15,2.1359]
[1732693674383,2.1354,234.2,234.14,12.23034139]
[1732693675388,2.08,234.21,234.14,5.5]
[1732693676482,2.1356,234.18,234.14,5.5]
[1732693676984,2.08,234.21,234.14,5.5]
[1732693677585,2.1357,234.17,234.14,5.5]
[1732693679392,6.73034139,234.22,234.14,5.5]
[1732693679393,2.1359,234.15,234.14,5.5]
[1732693681191,2.08,234.16,234.14,5.5]
[1732693681797,4.2158,234.16,234.14,5.5]
[1732693682093,2.08,234.16,234.14,5.5]
[1732693688995,4.2158,234.16,234.14,5.5]
[1732693689295,2.08,234.16,234.14,5.5]
[1732693689694,8.86624139,234.15,234.14,5.5]
[1732693689888,17.52056628,234.15,234.14,2.0]
[1732693690094,17.52056628,234.15,234.14,0.0005]
[1732693690298,15.38466628,234.15,233.99,3.7264]
[1732693690600,6.73034139,234.03,233.99,2.4538]
[1732693690798,2.1372,234.01,233.99,2.4538]
[1732693691000,2.1372,234.01,233.99,1.2399]
[1732693691503,6.73034139,234.01,234.0,1.3626]
[1732693692197,8.86744139,234.01,234.0,1.3626]
[1732693693199,6.73034139,234.01,233.91,6.73034139]
[1732693693406,6.73034139,233.99,233.91,6.73034139]
[1732693694105,6.73034139,233.99,233.91,8.86834139]
[1732693695011,6.73034139,233.99,233.92,3.41]
[1732693695701,6.73034139,233.99,233.92,10.14034139]
[1732693697197,6.73034139,233.99,233.92,3.41]
[1732693697400,2.1374,233.98,233.92,3.41]
[1732693697606,2.08,233.97,233.92,3.41]
[1732693697808,6.73034139,233.93,233.92,3.41]
[1732693698107,8.81034139,233.93,233.92,3.41]
[1732693700310,2.1381,233.91,233.83,6.73034139]
[1732693700511,2.08,233.93,233.84,2.1387]
[1732693700703,6.73034139,233.91,233.84,2.1387]
[1732693700907,8.86844139,233.91,233.83,6.73034139]
[1732693701403,8.86844139,233.91,233.83,8.86914139]
[1732693701910,8.86844139,233.91,233.84,3.42]
[1732693702307,6.73034139,233.89,233.84,3.42]
[1732693702518,2.08,233.88,233.84,3.42]
[1732693705306,2.1381,233.91,233.84,3.42]
[1732693705502,2.08,233.9,233.85,6.73034139]
[1732693705705,2.08,233.9,233.86,1.2101]
[1732693707605,6.73034139,233.89,233.86,1.2101]
[1732693708511,6.73034139,233.87,233.84,3.42]
[1732693708704,6.73034139,233.85,233.84,3.42]
[1732693708908,8.81034139,233.85,233.84,3.42]
[1732693709107,10.94894139,233.85,233.84,3.42]
[1732693709810,2.08,233.85,233.84,3.42]
[1732693711810,4.2186,233.85,233.84,3.42]
[1732693712512,2.1383,233.89,233.84,3.42]
[1732693712717,2.08,233.88,233.85,2.1386]
[1732693712909,6.73034139,233.91,233.85,2.1386]
[1732693713109,6.73034139,233.91,233.84,10.15034139]
[1732693713316,2.08,233.9,233.84,10.15034139]
[1732693713610,0.4659,234.05,233.88,6.73034139]
[1732693713806,0.4659,234.05,233.84,3.42]
[1732693713807,6.73034139,234.01,233.92,6.73034139]
[1732693714008,2.08,234.0,233.94,6.73034139]
[1732693714407,6.73034139,233.99,233.9,1.3102]
[1732693714609,6.73034139,233.97,233.9,1.3102]
[1732693715515,6.73034139,233.95,233.9,1.3102]
[1732693715721,2.08,233.94,233.9,1.3102]
[1732693716512,2.08,233.94,233.91,2.138]
[1732693716713,2.08,233.94,233.92,3.41]
[1732693720813,2.08,233.94,233.92,5.5479]
[1732693721007,2.08,233.97,233.92,5.5479]
[1732693721619,4.2176,233.97,233.92,5.5479]
[1732693721821,2.08,233.97,233.92,3.41]
[1732693722013,2.1368,234.05,233.95,10.53501778]
[1732693722214,2.08,234.09,233.96,2.28240361]
[1732693722414,2.08,234.09,233.96,1.213]
[1732693722614,2.08,234.09,233.98,2.1373]
[1732693722615,2.1369,234.04,233.98,2.1373]
[1732693722810,2.1369,234.04,233.99,1.2164]
[1732693723219,2.08,234.09,233.99,1.2164]
[1732693723414,2.1368,234.05,233.99,3.3537]
[1732693724020,2.1368,234.05,233.99,1.2164]
[1732693724217,2.1368,234.05,234.0,2.1372]
[1732693725519,2.08,234.09,233.99,1.2164]
[1732693725728,10.53501778,234.15,234.0,2.30643787]
[1732693725915,2.08,234.14,234.01,11.60415565]
[1732693726120,2.08,234.14,234.06,2.1367]
[1732693726523,2.08,234.14,234.01,10.53501778]
[1732693726722,2.1363,234.11,234.04,2.1368]
[1732693727119,2.1363,234.11,234.05,2.1368]
[1732693727325,2.08,234.11,234.01,10.53501778]
[1732693727625,2.08,234.11,234.04,2.1368]
[1732693727823,2.08,234.11,234.01,12.61501778]
[1732693728016,2.1361,234.12,234.02,1.06905055]
[1732693728222,2.1361,234.12,234.01,12.61501778]
[1732693728421,2.1361,234.12,234.05,2.1367]
[1732693728627,2.1361,234.12,234.01,12.61501778]
[1732693728925,2.1362,234.11,234.02,1.06904573]
[1732693729123,2.08,234.13,234.05,2.1367]
[1732693729422,2.1362,234.12,234.01,12.61501778]
[1732693729631,2.1362,234.12,234.02,1.06904996]
[1732693729822,2.1362,234.12,234.01,12.61501778]
[1732693730124,2.1362,234.12,234.02,1.06903797]
[1732693730322,2.1362,234.12,234.06,2.1367]
[1732693730528,2.08,234.13,234.01,12.61501778]
[1732693730829,2.08,234.13,234.08,2.1365]
[1732693731626,10.53501778,234.21,234.04,10.53501778]
[1732693731830,2.08,234.2,234.05,4.0679638]
[1732693732025,10.53501778,234.18,234.05,1.289]
[1732693732628,10.53501778,234.18,234.06,2.1366]
[1732693733635,2.1361,234.13,234.06,2.1366]
[1732693733825,2.1361,234.13,234.05,1.289]
[1732693733826,4.2161,234.13,234.07,2.1366]
[1732693735428,2.08,234.13,234.1,2.1363]
[1732693736033,2.08,234.13,234.08,2.1364]
[1732693736230,2.08,234.13,234.07,3.41]
[1732693736830,2.08,234.13,234.09,2.1364]
[1732693738928,2.136,234.14,234.09,2.1364]
[1732693739336,2.08,234.15,234.12,2.1361]
[1732693739829,10.53501778,234.24,234.13,2.136]
[1732693740134,2.08,234.23,234.09,1.2438]
[1732693741238,2.1357,234.17,234.13,2.136]
[1732693741438,2.08,234.23,234.09,1.2438]
[1732693743342,2.1356,234.18,234.13,2.136]
[1732693744133,2.08,234.23,234.13,2.136]
[1732693744335,2.1357,234.18,234.13,2.136]
[1732693745535,2.1357,234.18,234.14,2.136]
[1732693746841,2.08,234.19,234.14,2.136]
[1732693747142,2.08,234.19,234.15,2.1358]
[1732693747838,2.08,234.19,234.14,6.72932882]
[1732693747839,1.2209,234.28,234.16,6.72932882]
[1732693748037,2.08,234.27,234.18,6.72932882]
[1732693748340,2.1349,234.26,234.2,8.86462882]
[1732693748545,2.08,234.27,234.2,8.86462882]
[1732693748941,8.80932882,234.27,234.2,2.1353]
[1732693749242,2.135,234.25,234.2,2.1353]
[1732693749644,8.80932882,234.27,234.21,2.1353]
[1732693750144,2.135,234.25,234.2,2.1354]
[1732693750345,2.08,234.27,234.2,2.1354]
[1732693750541,2.08,234.27,234.16,1.2715]
[1732693750838,2.08,234.27,234.22,2.1352]
[1732693750839,4.2148,234.27,234.22,2.1352]
[1732693752043,2.08,234.28,234.18,10.50880203]
[1732693752544,2.08,234.28,234.19,1.3256]
[1732693753039,2.35932,234.3,234.26,2.1348]
[1732693753844,0.27932,234.3,234.26,2.1348]
[1732693754035,2.35932,234.3,234.26,2.1348]
[1732693754237,4.49382,234.3,234.26,2.1348]
[1732693755147,0.27932,234.3,234.26,2.1348]
[1732693755641,0.27932,234.3,234.22,2.08]
[1732693755851,0.27932,234.3,234.29,2.1346]
[1732693756046,10.50880203,234.4,234.24,10.50880203]
[1732693756244,2.1339,234.37,234.3,2.1344]
[1732693756737,1.3065,234.45,234.27,2.08]
[1732693756942,2.1334,234.42,234.35,2.134]
[1732693757747,2.08,234.44,234.35,2.134]
[1732693757947,2.1335,234.41,234.35,2.134]
[1732693758444,10.50880203,234.48,234.37,2.1339]
[1732693758749,2.08,234.47,234.37,2.1339]
[1732693759545,2.1332,234.44,234.33,10.50880203]
[1732693759747,2.08,234.44,234.33,10.50880203]
[1732693759945,2.08,234.44,234.34,1.06776351]
[1732693760147,2.08,234.44,234.35,3.41]
[1732693760951,4.2133,234.44,234.38,2.1337]
[1732693761154,4.2133,234.44,234.36,10.50880203]
[1732693761155,2.08,234.44,234.36,10.50880203]
[1732693761355,2.08,234.44,234.36,11.78000203]
[1732693761553,2.08,234.44,234.39,2.1337]
[1732693762354,2.1328,234.49,234.42,2.1334]
[1732693762549,2.1328,234.49,234.36,11.78000203]
[1732693762550,2.08,234.48,234.39,10.50880203]
[1732693762746,2.08,234.48,234.4,1.307]
[1732693763961,4.2129,234.48,234.43,2.1333]
[1732693764549,4.2129,234.48,234.44,1.06734041]
[1732693764752,4.2129,234.48,234.43,2.1333]
[1732693764948,2.08,234.48,234.44,1.06733884]
[1732693765253,2.08,234.48,234.43,2.1333]
[1732693765453,2.08,234.48,234.44,1.06733665]
[1732693765654,2.08,234.48,234.45,1.06733665]
[1732693765957,2.08,234.48,234.43,2.1333]
[1732693766158,2.08,234.48,234.44,1.06732571]
[1732693766455,2.08,234.48,234.45,1.06733502]
[1732693766856,2.08,234.48,234.43,2.1333]
[1732693767059,2.08,234.48,234.44,1.06733155]
[1732693767356,2.08,234.48,234.45,1.06733155]
[1732693767551,2.08,234.48,234.44,2.1332]
[1732693767751,2.1327,234.51,234.45,3.20042895]
[1732693767957,2.1327,234.51,234.46,1.06732895]
[1732693768160,10.50880203,234.55,234.42,10.50880203]
[1732693768455,33.3,234.67,234.46,2.133]
[1732693768456,2.08,234.54,234.46,2.133]
[1732693768662,10.50880203,234.58,234.47,1.0672499]
[1732693768851,2.1322,234.55,234.49,2.1327]
[1732693769163,2.1322,234.55,234.5,1.06707864]
[1732693769461,2.1322,234.55,234.49,2.1327]
[1732693769660,2.1322,234.55,234.5,1.06709612]
[1732693769859,2.1322,234.55,234.49,2.1327]
[1732693770159,4.2121,234.57,234.5,1.06709724]
[1732693770363,2.08,234.57,234.46,1.3035]
[1732693770658,2.08,234.57,234.47,2.77444281]
[1732693770859,2.08,234.57,234.48,2.77444281]
[1732693771056,2.08,234.57,234.46,1.3035]
[1732693771358,10.50880203,234.55,234.47,1.06714611]
[1732693771554,10.50880203,234.55,234.46,1.3035]
[1732693771756,10.50880203,234.55,234.47,1.06717988]
[1732693771960,10.50880203,234.55,234.46,1.3035]
[1732693772162,10.50880203,234.55,234.47,1.06718061]
[1732693772353,10.50880203,234.55,234.46,1.3035]
[1732693772554,10.50880203,234.55,234.47,1.06714972]
[1732693772785,10.50880203,234.55,234.46,1.3035]
[1732693773058,10.50880203,234.55,234.47,1.06716906]
[1732693773258,10.50880203,234.55,234.46,1.3035]
[1732693773455,10.50880203,234.55,234.47,1.06716364]
[1732693773656,10.50880203,234.55,234.46,1.3035]
[1732693773860,10.50880203,234.55,234.47,1.06716364]
[1732693774059,10.50880203,234.55,234.46,1.3035]
[1732693774256,10.50880203,234.55,234.47,1.06716364]
[1732693774257,2.1326,234.52,234.47,1.06716364]
[1732693774461,2.1326,234.52,234.46,3.4365]
[1732693774665,2.1326,234.52,234.47,1.06716711]
[1732693774858,2.1326,234.52,234.46,3.4365]
[1732693775064,2.1326,234.52,234.47,1.06716711]
[1732693775266,2.1326,234.52,234.46,2.133]
[1732693776656,2.1324,234.54,234.47,1.0671646]
[1732693776856,2.08,234.57,234.42,10.50880203]
[1732693777060,2.08,234.57,234.43,4.908927]
[1732693777262,2.1324,234.53,234.48,2.1329]
[1732693778164,2.08,234.57,234.42,10.50880203]
[1732693778364,6.71048973,234.54,234.49,2.1328]
[1732693778567,6.71048973,234.56,234.48,6.71048973]
[1732693778963,8.84258973,234.56,234.48,6.71048973]
[1732693779469,8.84258973,234.56,234.5,2.1327]
[1732693779666,2.08,234.55,234.48,6.71048973]
[1732693780069,2.08,234.55,234.5,2.1326]
[1732693780572,1.3254,234.59,234.5,6.71048973]
[1732693780573,2.08,234.59,234.5,6.71048973]
[1732693780766,8.79048973,234.59,234.5,6.71048973]
[1732693781168,6.71048973,234.57,234.5,6.71048973]
[1732693781869,6.71048973,234.58,234.52,2.1325]
[1732693782670,2.1321,234.57,234.52,2.1325]
[1732693785974,2.1322,234.56,234.53,3.41]
[1732693787176,6.71048973,234.56,234.53,3.41]
[1732693787369,8.84278973,234.54,234.53,3.41]
[1732693789072,2.1323,234.54,234.53,3.41]
[1732693789669,8.84278973,234.54,234.53,3.41]
[1732693790478,2.1323,234.54,234.53,3.41]
[1732693792676,2.1322,234.56,234.53,3.41]
[1732693793572,2.1321,234.57,234.53,3.41]
[1732693794973,2.1322,234.56,234.53,3.41]
[1732693799780,2.1323,234.54,234.53,3.41]
[1732693800182,2.08,234.58,234.53,3.41]
[1732693801184,2.1322,234.55,234.53,3.41]
[1732693801382,6.71048973,234.57,234.54,1.06704011]
[1732693801583,6.71048973,234.57,234.53,3.41]
[1732693801584,2.1323,234.55,234.53,3.41]
[1732693802986,2.1321,234.57,234.53,3.41]
[1732693803889,2.1321,234.57,234.54,1.06703121]
[1732693804090,2.1321,234.57,234.53,3.41]
[1732693805191,2.1321,234.57,234.52,8.84298973]
[1732693805387,2.08,234.58,234.53,1.06702847]
[1732693805695,4.212,234.58,234.52,8.84298973]
[1732693805886,2.08,234.58,234.53,1.06700419]
[1732693806088,2.08,234.58,234.52,8.84298973]
[1732693806490,2.08,234.58,234.52,6.71048973]
[1732693806697,2.1321,234.57,234.53,3.41]
[1732693806892,6.71048973,234.6,234.53,3.41]
[1732693807195,12.87106287,234.59,234.54,8.84278973]
[1732693807498,12.87106287,234.59,234.54,6.71048973]
[1732693807499,8.65916287,234.58,234.54,6.71048973]
[1732693808298,8.65916287,234.58,234.54,8.84278973]
[1732693808788,8.65916287,234.58,234.53,3.41]
[1732693808789,8.65916287,234.58,234.56,6.71048973]
[1732693808993,2.1318,234.6,234.56,6.71048973]
[1732693809192,8.66941195,234.59,234.56,6.71048973]
[1732693810801,2.08,234.62,234.56,6.71048973]
[1732693811002,10.80280375,234.61,234.56,8.84258973]
[1732693811303,2.08,234.62,234.56,6.71048973]
[1732693811304,8.67110375,234.6,234.56,6.71048973]
[1732693811506,2.08,234.62,234.56,6.71048973]
[1732693811697,8.67124964,234.61,234.58,2.132]
[1732693811897,8.67124964,234.6,234.56,6.71048973]
[1732693812096,2.08,234.64,234.56,6.71048973]
[1732693812300,2.1316,234.62,234.58,2.1319]
[1732693812602,8.6733628,234.61,234.53,3.41]
[1732693812904,8.6733628,234.6,234.56,8.84258973]
[1732693813394,10.8051628,234.6,234.56,6.71048973]
[1732693813602,8.79048973,234.64,234.56,6.71048973]
[1732693813796,8.67170841,234.63,234.56,6.71048973]
[1732693814002,8.67170841,234.63,234.57,2.7]
[1732693814295,8.67170841,234.63,234.57,4.832]
[1732693815301,8.67170841,234.63,234.58,2.1319]
[1732693815801,8.67170841,234.63,234.58,8.84238973]
[1732693816000,8.67170841,234.63,234.59,2.1318]
[1732693817198,8.67170841,234.63,234.58,6.71048973]
[1732693817500,10.80320841,234.63,234.58,8.84238973]
[1732693817703,8.67170841,234.62,234.58,8.84238973]
[1732693818107,8.67170841,234.62,234.57,2.7]
[1732693818304,8.67170841,234.61,234.57,9.41048973]
[1732693818702,10.80340841,234.61,234.57,11.54248973]
[1732693818902,2.1317,234.61,234.57,11.54248973]
[1732693820504,2.1316,234.62,234.57,11.54248973]
[1732693820706,8.6652474,234.61,234.57,2.7]
[1732693821006,2.1319,234.59,234.57,2.7]
[1732693823210,8.79048973,234.64,234.57,2.7]
[1732693823211,2.132,234.58,234.57,2.7]
[1732693823406,8.79048973,234.64,234.57,6.11]
[1732693823605,8.6673855,234.63,234.57,6.11]
[1732693824106,2.1319,234.6,234.57,6.11]
[1732693824500,8.79048973,234.64,234.57,6.11]
[1732693824697,2.1317,234.62,234.57,6.11]
[1732693824901,8.66740452,234.61,234.57,6.11]
[1732693825410,8.66740452,234.61,234.58,6.71048973]
[1732693825705,10.79910452,234.61,234.58,6.71048973]
[1732693826010,2.1317,234.61,234.58,6.71048973]
[1732693826208,2.08,234.64,234.58,6.71048973]
[1732693826399,2.1317,234.62,234.58,6.71048973]
[1732693826604,8.66637951,234.61,234.58,6.71048973]
[1732693827010,2.1317,234.62,234.58,6.71048973]
[1732693827308,4.2114,234.64,234.58,8.84238973]
[1732693827608,8.66533489,234.63,234.58,8.84238973]
[1732693827802,8.66533489,234.62,234.58,6.71048973]
[1732693828008,8.66533489,234.64,234.59,2.1318]
[1732693828202,4.2114,234.65,234.58,6.71048973]
[1732693828402,8.66501587,234.64,234.6,6.71048973]
[1732693828603,8.66501587,234.64,234.61,2.1317]
[1732693829806,8.66501587,234.63,234.61,2.1317]
[1732693830009,4.2112,234.66,234.61,2.1317]
[1732693830212,8.66304459,234.65,234.61,2.1317]
[1732693830701,8.66304459,234.64,234.6,6.71048973]
[1732693830904,2.08,234.67,234.62,2.1316]
[1732693831106,2.1314,234.64,234.58,1.254]
[1732693831301,2.1314,234.64,234.59,8.84228973]
[1732693831500,8.66113591,234.63,234.59,8.84228973]
[1732693831708,8.66113591,234.63,234.59,6.71048973]
[1732693831907,2.1313,234.65,234.59,6.71048973]
[1732693832104,8.66119994,234.64,234.59,6.71048973]
[1732693832303,2.1318,234.6,234.58,1.254]
[1732693833308,2.1317,234.61,234.58,1.254]
[1732693834808,2.1317,234.61,234.57,6.11]
[1732693835411,2.08,234.62,234.57,6.11]
[1732693835609,2.08,234.62,234.58,6.71048973]
[1732693835805,0.6256,234.71,234.61,6.71048973]
[1732693836107,0.6256,234.71,234.57,6.11]
[1732693836108,6.71048973,234.69,234.57,6.11]
[1732693836310,8.66257368,234.68,234.61,6.71048973]
[1732693836706,2.1313,234.65,234.61,8.84208973]
[1732693838105,2.1312,234.67,234.59,2.1318]
[1732693838306,8.66196379,234.66,234.61,6.71048973]
[1732693838508,6.71048973,234.69,234.61,6.71048973]
[1732693838708,8.66072244,234.68,234.61,6.71048973]
[1732693839218,8.66072244,234.67,234.61,6.71048973]
[1732693839418,8.66072244,234.66,234.61,6.71048973]
[1732693839612,2.1312,234.66,234.63,6.71048973]
[1732693840513,2.08,234.68,234.65,6.71048973]
[1732693841209,0.6256,234.71,234.67,6.71048973]
[1732693841613,0.6256,234.71,234.69,6.71048973]
[1732693842904,0.6256,234.71,234.69,8.84138973]
[1732693843304,0.6256,234.71,234.62,1.2297]
[1732693843508,0.6256,234.71,234.68,6.71048973]
[1732693844109,2.7564,234.71,234.68,6.71048973]
[1732693844310,2.08,234.73,234.68,8.84148973]
[1732693844614,8.65185322,234.72,234.68,8.84148973]
[1732693844809,8.65185322,234.72,234.68,6.71048973]
[1732693845016,8.65185322,234.72,234.62,1.2297]
[1732693845213,8.65185322,234.72,234.68,6.71048973]
[1732693845712,8.65185322,234.72,234.62,1.2297]
[1732693846011,8.65185322,234.72,234.69,6.71048973]
[1732693846218,2.1309,234.71,234.69,6.71048973]
[1732693847518,2.1307,234.72,234.69,6.71048973]
[1732693847720,8.64870468,234.71,234.69,6.71048973]
[1732693848315,2.1307,234.72,234.69,6.71048973]
[1732693848519,2.08,234.73,234.69,6.71048973]
[1732693848710,4.2106,234.73,234.69,6.71048973]
[1732693849018,8.64760417,234.72,234.69,6.71048973]
[1732693849619,8.64760417,234.72,234.61,2.08]
[1732693849620,34.29760417,234.72,234.52,2.13289189]
[1732693849917,20.17318245,234.71,234.56,6.71048973]
[1732693850225,20.17318245,234.7,234.6,6.71048973]
[1732693850410,10.72760417,234.69,234.62,6.71048973]
[1732693850615,2.1311,234.67,234.62,6.71048973]
[1732693851217,2.08,234.68,234.64,6.71048973]
[1732693851418,8.64976124,234.67,234.66,6.71048973]
[1732693851617,2.08,234.7,234.66,6.71048973]
[1732693851822,8.64965275,234.69,234.66,6.71048973]
[1732693852721,8.64965275,234.69,234.64,0.85]
[1732693852921,10.78065275,234.69,234.64,0.85]
[1732693853121,8.64965275,234.68,234.65,6.71048973]
[1732693853322,2.08,234.7,234.65,6.71048973]
[1732693853521,8.65082724,234.69,234.65,6.71048973]
[1732693854214,8.65082724,234.69,234.64,0.85]
[1732693854215,8.65082724,234.69,234.67,6.71048973]
[1732693854621,2.08,234.7,234.67,6.71048973]
[1732693856216,2.08,234.7,234.65,6.71048973]
[1732693857521,2.08,234.7,234.66,6.71048973]
[1732693857922,4.2109,234.7,234.66,6.71048973]
[1732693860621,4.2109,234.7,234.68,6.71048973]
[1732693860821,2.08,234.7,234.68,6.71048973]
[1732693861319,2.08,234.72,234.68,6.71048973]
[1732693861520,8.65073818,234.71,234.68,6.71048973]
[1732693862217,2.08,234.72,234.68,6.71048973]
[1732693862417,2.08,234.72,234.68,8.84148973]
[1732693864421,2.08,234.72,234.7,8.84128973]
[1732693864721,2.08,234.72,234.7,6.71048973]
[1732693865025,2.1304,234.75,234.7,6.71048973]
[1732693865222,8.64808811,234.74,234.7,6.71048973]
[1732693866224,8.64808811,234.74,234.66,1.3269]
[1732693866420,10.77858811,234.74,234.66,1.3269]
[1732693866615,8.64808811,234.73,234.69,6.71048973]
[1732693866820,2.1306,234.73,234.69,6.71048973]
[1732693867020,2.08,234.75,234.69,6.71048973]
[1732693867219,8.64832308,234.74,234.69,6.71048973]
[1732693867721,8.64832308,234.74,234.66,1.3269]
[1732693867919,8.64832308,234.74,234.69,6.71048973]
[1732693868528,8.64832308,234.74,234.71,6.71048973]
[1732693868719,8.64832308,234.74,234.67,2.1311]
[1732693868922,6.71048973,234.73,234.65,2.5323]
[1732693869124,8.64832308,234.72,234.65,2.5323]
[1732693869329,8.64832308,234.72,234.65,9.24278973]
[1732693869525,8.64832308,234.71,234.65,9.24278973]
[1732693869722,10.72832308,234.7,234.65,9.24278973]
[1732693869926,10.77932308,234.69,234.65,9.24278973]
[1732693870120,2.131,234.69,234.65,9.24278973]
[1732693870520,2.08,234.7,234.65,2.5323]
[1732693870720,2.08,234.7,234.67,6.71048973]
[1732693871230,4.2109,234.7,234.67,6.71048973]
[1732693871426,2.08,234.7,234.67,6.71048973]
[1732693871730,2.08,234.72,234.69,6.71048973]
[1732693871929,8.65452913,234.71,234.69,6.71048973]
[1732693873331,8.65452913,234.71,234.69,8.84138973]
[1732693873729,2.08,234.72,234.69,8.84138973]
[1732693873929,2.08,234.72,234.69,6.71048973]
[1732693875538,2.08,234.72,234.69,8.84148973]
[1732693877633,2.08,234.72,234.69,6.71048973]
[1732693878835,8.66133884,234.71,234.65,2.5323]
[1732693879036,8.66133884,234.71,234.69,6.71048973]
[1732693879236,8.66133884,234.71,234.7,0.85]
[1732693881031,10.79213884,234.71,234.7,0.85]
[1732693884344,8.66133884,234.71,234.7,0.85]
[1732693890240,8.66133884,234.71,234.7,2.9809]
[1732693890835,8.66133884,234.74,234.7,2.9809]